[Event "*** SCC Grand Prix: Titled Tuesday Blitz"]
[Site "Chess.com"]
[Date "2020.08.11"]
[Round "3"]
[White "Tashik"]
[Black "Andrakhanova"]
[Result "1-0"]
[WhiteElo "2372"]
[BlackElo "1689"]
[TimeControl "180+1"]
[EndTime "10:28:30 PDT"]
[Termination "Tashik won by resignation"]

1. c4 {[%clk 0:03:00.9]} 1... e6 {[%clk 0:02:59.7]} 2. Nf3 {[%clk 0:02:59.6]}
2... d5 {[%clk 0:02:59.9]} 3. e3 {[%clk 0:02:59.7]} 3... c6 {[%clk 0:03:00.1]}
4. b3 {[%clk 0:02:58.9]} 4... Nf6 {[%clk 0:02:59.8]} 5. Bb2 {[%clk 0:02:59.3]}
5... Nbd7 {[%clk 0:02:59.9]} 6. Nc3 {[%clk 0:02:56.6]} 6... Bd6 {[%clk
0:02:59.7]} 7. d4 {[%clk 0:02:55.4]} 7... O-O {[%clk 0:02:59.5]} 8. Bd3 {[%clk
0:02:55.9]} 8... Qe7 {[%clk 0:02:59.5]} 9. h3 {[%clk 0:02:47.8]} 9... dxc4
{[%clk 0:02:59.4]} 10. bxc4 {[%clk 0:02:43.9]} 10... e5 {[%clk 0:02:59.6]} 11.
Qc2 {[%clk 0:02:35.8]} 11... exd4 {[%clk 0:02:51.6]} 12. Nxd4 {[%clk 0:02:36.7]}
12... Ne5 {[%clk 0:02:47.3]} 13. Be2 {[%clk 0:02:35.3]} 13... Rd8 {[%clk
0:02:36.6]} 14. O-O {[%clk 0:02:34.1]} 14... g6 {[%clk 0:02:35.1]} 15. Rad1
{[%clk 0:02:33.4]} 15... a5 {[%clk 0:02:28.7]} 16. Na4 {[%clk 0:02:18.1]} 16...
Rb8 {[%clk 0:01:46.3]} 17. c5 {[%clk 0:02:12.5]} 17... Bc7 {[%clk 0:01:45.3]}
18. e4 {[%clk 0:02:13.1]} 18... Be6 {[%clk 0:01:33.3]} 19. f4 {[%clk 0:02:09.4]}
19... Ned7 {[%clk 0:01:30.4]} 20. f5 {[%clk 0:01:50.7]} 20... Bxa2 {[%clk
0:01:19.3]} 21. fxg6 {[%clk 0:01:36.9]} 21... hxg6 {[%clk 0:01:18.1]} 22. Nf3
{[%clk 0:01:19.8]} 22... Qxe4 {[%clk 0:01:12.7]} 23. Bd3 {[%clk 0:01:09.5]}
23... Qe3+ {[%clk 0:01:10.3]} 24. Kh1 {[%clk 0:00:34.7]} 24... Bd5 {[%clk
0:01:06.4]} 25. Bxg6 {[%clk 0:00:31.2]} 25... Qh6 {[%clk 0:00:59.1]} 26. Bf5
{[%clk 0:00:24.7]} 26... Ne5 {[%clk 0:00:53.3]} 27. Nxe5 {[%clk 0:00:20.6]} 1-0

[Event "*** SCC Grand Prix: Titled Tuesday Blitz"]
[Site "Chess.com"]
[Date "2020.08.11"]
[Round "3"]
[White "FabianoCaruana"]
[Black "GregShahade"]
[Result "0-1"]
[WhiteElo "2996"]
[BlackElo "2716"]
[TimeControl "180+1"]
[EndTime "10:28:31 PDT"]
[Termination "GregShahade won by resignation"]

1. e4 {[%clk 0:03:00.9]} 1... e5 {[%clk 0:03:00.1]} 2. Nf3 {[%clk 0:03:01.3]}
2... Nc6 {[%clk 0:03:00.5]} 3. Bb5 {[%clk 0:03:01.7]} 3... a6 {[%clk 0:03:01.1]}
4. Ba4 {[%clk 0:03:01.6]} 4... Nf6 {[%clk 0:03:01.5]} 5. d3 {[%clk 0:03:02.2]}
5... b5 {[%clk 0:03:00.6]} 6. Bb3 {[%clk 0:03:02.1]} 6... Bc5 {[%clk 0:03:01.4]}
7. c3 {[%clk 0:03:02]} 7... d6 {[%clk 0:03:01.7]} 8. Nbd2 {[%clk 0:03:01.7]}
8... h6 {[%clk 0:03:00]} 9. Nf1 {[%clk 0:03:01.7]} 9... Bb6 {[%clk 0:02:53.9]}
10. Ng3 {[%clk 0:03:01.1]} 10... Rb8 {[%clk 0:02:46]} 11. O-O {[%clk 0:03:00.2]}
11... O-O {[%clk 0:02:46.4]} 12. h3 {[%clk 0:02:58.5]} 12... Re8 {[%clk
0:02:46.6]} 13. Re1 {[%clk 0:02:58.1]} 13... Be6 {[%clk 0:02:46.8]} 14. Bxe6
{[%clk 0:02:54.5]} 14... Rxe6 {[%clk 0:02:36.3]} 15. d4 {[%clk 0:02:53.4]} 15...
exd4 {[%clk 0:02:31.7]} 16. cxd4 {[%clk 0:02:54.3]} 16... d5 {[%clk 0:02:32.2]}
17. e5 {[%clk 0:02:52.9]} 17... Ne4 {[%clk 0:02:32.9]} 18. Be3 {[%clk 0:02:47]}
18... Nxg3 {[%clk 0:02:27.1]} 19. fxg3 {[%clk 0:02:47.9]} 19... f6 {[%clk
0:02:09]} 20. exf6 {[%clk 0:02:46.7]} 20... Qxf6 {[%clk 0:02:08.5]} 21. Kh2
{[%clk 0:02:34.4]} 21... Rbe8 {[%clk 0:02:06.4]} 22. Qd2 {[%clk 0:02:33.7]}
22... Ba5 {[%clk 0:02:04.5]} 23. Qd3 {[%clk 0:02:26.3]} 23... Bxe1 {[%clk
0:02:02.5]} 24. Rxe1 {[%clk 0:02:27.2]} 24... Qe7 {[%clk 0:01:52.8]} 25. Bd2
{[%clk 0:02:21.1]} 25... Rxe1 {[%clk 0:01:52.4]} 26. Bxe1 {[%clk 0:02:22]} 26...
Qe4 {[%clk 0:01:39.1]} 27. Qc3 {[%clk 0:02:22]} 27... Re6 {[%clk 0:01:39.4]} 28.
Bd2 {[%clk 0:02:19]} 28... Kh7 {[%clk 0:01:19.2]} 29. Bf4 {[%clk 0:02:17.9]}
29... Qb1 {[%clk 0:01:08.7]} 30. Bxc7 {[%clk 0:02:07.1]} 30... Qxa2 {[%clk
0:00:59.8]} 31. Qc2+ {[%clk 0:02:05.5]} 31... Kg8 {[%clk 0:00:55.4]} 32. Qf5
{[%clk 0:02:02]} 32... Rf6 {[%clk 0:00:53.9]} 33. Qc8+ {[%clk 0:01:36.7]} 33...
Kh7 {[%clk 0:00:51.3]} 34. Ne5 {[%clk 0:01:36.2]} 34... Nxd4 {[%clk 0:00:45.5]}
35. Nd7 {[%clk 0:01:28.6]} 35... Nf3+ {[%clk 0:00:45.1]} 36. gxf3 {[%clk
0:01:24.9]} 36... Qxb2+ {[%clk 0:00:45.4]} 37. Kg1 {[%clk 0:01:24.2]} 37... Qc1+
{[%clk 0:00:45.6]} 38. Kh2 {[%clk 0:01:21.1]} 38... Qd2+ {[%clk 0:00:45.8]} 39.
Kg1 {[%clk 0:01:20.4]} 39... Qe1+ {[%clk 0:00:46]} 40. Kg2 {[%clk 0:01:20.2]}
40... Qe2+ {[%clk 0:00:43.3]} 41. Kg1 {[%clk 0:01:20.6]} 41... Qd1+ {[%clk
0:00:43.5]} 42. Kh2 {[%clk 0:01:19.7]} 42... Qd2+ {[%clk 0:00:26.8]} 43. Kh1
{[%clk 0:01:17.2]} 43... Qe1+ {[%clk 0:00:25.9]} 44. Kg2 {[%clk 0:01:17.5]}
44... Qe2+ {[%clk 0:00:25.1]} 45. Kg1 {[%clk 0:01:16.3]} 45... Qe3+ {[%clk
0:00:25.7]} 46. Kf1 {[%clk 0:01:12.8]} 46... Rxf3+ {[%clk 0:00:24.8]} 0-1

[Event "*** SCC Grand Prix: Titled Tuesday Blitz"]
[Site "Chess.com"]
[Date "2020.08.11"]
[Round "3"]
[White "140mariam"]
[Black "kakakz"]
[Result "1-0"]
[WhiteElo "2335"]
[BlackElo "2439"]
[TimeControl "180+1"]
[EndTime "10:28:32 PDT"]
[Termination "140mariam won by resignation"]

1. d4 {[%clk 0:03:00.8]} 1... Nf6 {[%clk 0:02:59.2]} 2. c4 {[%clk 0:03:00.9]}
2... g6 {[%clk 0:02:59.4]} 3. Nc3 {[%clk 0:03:01.1]} 3... Bg7 {[%clk 0:03:00.3]}
4. Nf3 {[%clk 0:03:01.6]} 4... d6 {[%clk 0:03:00.6]} 5. e4 {[%clk 0:03:01.3]}
5... O-O {[%clk 0:03:00.6]} 6. Be2 {[%clk 0:03:01.5]} 6... e5 {[%clk 0:03:01]}
7. O-O {[%clk 0:03:00.5]} 7... Nbd7 {[%clk 0:03:00.9]} 8. Be3 {[%clk 0:02:57.2]}
8... Re8 {[%clk 0:02:59]} 9. dxe5 {[%clk 0:02:55.8]} 9... dxe5 {[%clk
0:02:55.5]} 10. h3 {[%clk 0:02:56]} 10... c6 {[%clk 0:02:55.6]} 11. Qb3 {[%clk
0:02:51.8]} 11... Qe7 {[%clk 0:02:53.3]} 12. Rad1 {[%clk 0:02:47.5]} 12... Nc5
{[%clk 0:02:49.9]} 13. Qc2 {[%clk 0:02:44.2]} 13... a5 {[%clk 0:02:41.7]} 14.
Bxc5 {[%clk 0:02:30.3]} 14... Qxc5 {[%clk 0:02:39.9]} 15. Na4 {[%clk 0:02:30.9]}
15... Qe7 {[%clk 0:02:26.8]} 16. Nb6 {[%clk 0:02:30.2]} 16... Rb8 {[%clk
0:02:25.6]} 17. Nxc8 {[%clk 0:02:14.3]} 17... Rbxc8 {[%clk 0:02:26.5]} 18. Bd3
{[%clk 0:02:08.3]} 18... Nd7 {[%clk 0:02:20.8]} 19. Qa4 {[%clk 0:02:04]} 19...
Ra8 {[%clk 0:02:05.1]} 20. Bb1 {[%clk 0:02:00.5]} 20... Nc5 {[%clk 0:02:04]} 21.
Qa3 {[%clk 0:02:00.9]} 21... Bf8 {[%clk 0:01:54.6]} 22. Rd2 {[%clk 0:01:50.1]}
22... Qc7 {[%clk 0:01:49.3]} 23. Qe3 {[%clk 0:01:45.3]} 23... Ne6 {[%clk
0:01:44.8]} 24. Rfd1 {[%clk 0:01:43.1]} 24... Bc5 {[%clk 0:01:35.8]} 25. Qh6
{[%clk 0:01:38.8]} 25... Nd4 {[%clk 0:01:31.6]} 26. Nxd4 {[%clk 0:01:25.8]}
26... Bxd4 {[%clk 0:01:29.7]} 27. Kh1 {[%clk 0:01:22.8]} 27... a4 {[%clk
0:01:21.5]} 28. Qg5 {[%clk 0:01:20.6]} 28... Kg7 {[%clk 0:01:12]} 29. h4 {[%clk
0:01:19.5]} 29... h5 {[%clk 0:01:06.9]} 30. Qg3 {[%clk 0:00:53.5]} 30... Re6
{[%clk 0:01:00.4]} 31. Rxd4 {[%clk 0:00:53.6]} 1-0

[Event "*** SCC Grand Prix: Titled Tuesday Blitz"]
[Site "Chess.com"]
[Date "2020.08.11"]
[Round "3"]
[White "PauloCesarCosta_sad"]
[Black "Brave_spirit12"]
[Result "0-1"]
[WhiteElo "2249"]
[BlackElo "2508"]
[TimeControl "180+1"]
[EndTime "10:28:33 PDT"]
[Termination "Brave_spirit12 won on time"]

1. Nf3 {[%clk 0:03:00.9]} 1... d5 {[%clk 0:02:59.9]} 2. d4 {[%clk 0:03:00.2]}
2... Nf6 {[%clk 0:03:00.8]} 3. c4 {[%clk 0:03:00.7]} 3... c6 {[%clk 0:02:59.6]}
4. Nc3 {[%clk 0:02:59.6]} 4... g6 {[%clk 0:02:59.5]} 5. e3 {[%clk 0:02:59.6]}
5... Bg7 {[%clk 0:02:59.5]} 6. Be2 {[%clk 0:02:59.2]} 6... O-O {[%clk
0:02:58.7]} 7. O-O {[%clk 0:02:59.7]} 7... a6 {[%clk 0:02:58.1]} 8. cxd5 {[%clk
0:02:58.8]} 8... cxd5 {[%clk 0:02:58]} 9. a4 {[%clk 0:02:58.2]} 9... Nc6 {[%clk
0:02:57]} 10. Bd2 {[%clk 0:02:55.7]} 10... Bf5 {[%clk 0:02:56.6]} 11. Nh4 {[%clk
0:02:54.5]} 11... Be6 {[%clk 0:02:55.8]} 12. Nf3 {[%clk 0:02:54]} 12... Rc8
{[%clk 0:02:54.8]} 13. Rc1 {[%clk 0:02:42.9]} 13... Qb6 {[%clk 0:02:54]} 14. Rb1
{[%clk 0:02:25.7]} 14... Bf5 {[%clk 0:02:50.6]} 15. Ra1 {[%clk 0:02:14.6]} 15...
Qxb2 {[%clk 0:02:48.3]} 16. Ne5 {[%clk 0:02:10.7]} 16... Nxe5 {[%clk 0:02:44.8]}
17. dxe5 {[%clk 0:02:10.6]} 17... Ne4 {[%clk 0:02:43.3]} 18. Nxe4 {[%clk
0:02:01.6]} 18... Bxe4 {[%clk 0:02:44.2]} 19. f3 {[%clk 0:00:47.4]} 19... Bf5
{[%clk 0:02:35]} 20. g4 {[%clk 0:00:46.5]} 20... Bc2 {[%clk 0:02:07.9]} 21. Qc1
{[%clk 0:00:44.4]} 21... Qxe5 {[%clk 0:02:04.8]} 22. Ra2 {[%clk 0:00:33.1]}
22... Bb3 {[%clk 0:02:00.3]} 23. Qa3 {[%clk 0:00:31.4]} 23... Bxa2 {[%clk
0:01:59.2]} 24. Qxa2 {[%clk 0:00:32.3]} 24... Rc7 {[%clk 0:01:54.6]} 25. f4
{[%clk 0:00:29]} 25... Qd6 {[%clk 0:01:51.3]} 26. Bf3 {[%clk 0:00:27.8]} 26...
e6 {[%clk 0:01:50.5]} 27. g5 {[%clk 0:00:27.5]} 27... Rfc8 {[%clk 0:01:50.8]}
28. Ba5 {[%clk 0:00:27.3]} 28... Rc2 {[%clk 0:01:50.8]} 29. Qb1 {[%clk
0:00:26.9]} 29... Qa3 {[%clk 0:01:48.6]} 30. Qe1 {[%clk 0:00:25]} 30... Rc1
{[%clk 0:01:47.7]} 31. Qf2 {[%clk 0:00:22.8]} 31... Rxf1+ {[%clk 0:01:48.6]} 32.
Kxf1 {[%clk 0:00:23]} 32... Rc1+ {[%clk 0:01:48.8]} 33. Kg2 {[%clk 0:00:20.7]}
33... Qxa4 {[%clk 0:01:46.7]} 34. Be1 {[%clk 0:00:19.2]} 34... Rc2 {[%clk
0:01:46.2]} 35. Kg3 {[%clk 0:00:19]} 35... Rxf2 {[%clk 0:01:45.5]} 36. Bxf2
{[%clk 0:00:19.9]} 36... Qc2 {[%clk 0:01:45.4]} 37. h3 {[%clk 0:00:20.8]} 37...
a5 {[%clk 0:01:45.7]} 38. h4 {[%clk 0:00:20.7]} 38... a4 {[%clk 0:01:46]} 39. h5
{[%clk 0:00:21.6]} 39... gxh5 {[%clk 0:01:46.8]} 40. Bxh5 {[%clk 0:00:20.6]}
40... a3 {[%clk 0:01:46.9]} 41. Kf3 {[%clk 0:00:21.1]} 41... Qd1+ {[%clk
0:01:46.5]} 42. Kg2 {[%clk 0:00:19.9]} 42... Qxh5 {[%clk 0:01:47.4]} 43. Bg3
{[%clk 0:00:20.2]} 43... a2 {[%clk 0:01:47.8]} 44. g6 {[%clk 0:00:21.1]} 44...
a1=Q {[%clk 0:01:46.5]} 45. gxf7+ {[%clk 0:00:22]} 45... Kxf7 {[%clk 0:01:47]}
46. f5 {[%clk 0:00:22.9]} 46... Qb2+ {[%clk 0:01:45.9]} 47. Bf2 {[%clk
0:00:20.8]} 47... Qxf5 {[%clk 0:01:46]} 48. Kh1 {[%clk 0:00:08.6]} 48... Qfxf2
{[%clk 0:01:46.9]} 0-1

[Event "*** SCC Grand Prix: Titled Tuesday Blitz"]
[Site "Chess.com"]
[Date "2020.08.11"]
[Round "3"]
[White "GM_Levan_Pantsulaia"]
[Black "M1711"]
[Result "1-0"]
[WhiteElo "2795"]
[BlackElo "2447"]
[TimeControl "180+1"]
[EndTime "10:28:35 PDT"]
[Termination "GM_Levan_Pantsulaia won on time"]

1. Nf3 {[%clk 0:03:00.9]} 1... c5 {[%clk 0:03:00.5]} 2. c4 {[%clk 0:02:59.4]}
2... Nc6 {[%clk 0:02:59.1]} 3. Nc3 {[%clk 0:02:59.4]} 3... g6 {[%clk 0:02:57.7]}
4. e3 {[%clk 0:02:58.3]} 4... Nf6 {[%clk 0:02:56.7]} 5. d4 {[%clk 0:02:58.5]}
5... cxd4 {[%clk 0:02:57.6]} 6. exd4 {[%clk 0:02:59.1]} 6... d5 {[%clk
0:02:58.3]} 7. cxd5 {[%clk 0:02:59.5]} 7... Nxd5 {[%clk 0:02:59.2]} 8. Qb3
{[%clk 0:03:00.1]} 8... e6 {[%clk 0:02:58.5]} 9. Bb5 {[%clk 0:02:58.7]} 9... Bg7
{[%clk 0:02:58.1]} 10. O-O {[%clk 0:02:58.9]} 10... O-O {[%clk 0:02:58.4]} 11.
Bxc6 {[%clk 0:02:59.1]} 11... bxc6 {[%clk 0:02:59.3]} 12. Na4 {[%clk 0:02:59.8]}
12... Qd6 {[%clk 0:02:51.2]} 13. Bd2 {[%clk 0:02:52.2]} 13... Rb8 {[%clk
0:02:39.3]} 14. Qc2 {[%clk 0:02:44]} 14... Nb4 {[%clk 0:02:20.6]} 15. Bxb4
{[%clk 0:02:34.9]} 15... Rxb4 {[%clk 0:02:19.1]} 16. a3 {[%clk 0:02:35.4]} 16...
Rb5 {[%clk 0:02:16.8]} 17. Rfd1 {[%clk 0:02:25.1]} 17... Rd8 {[%clk 0:02:08.9]}
18. h3 {[%clk 0:02:17.5]} 18... Rf5 {[%clk 0:02:05.1]} 19. Ne5 {[%clk
0:02:15.4]} 19... Bd7 {[%clk 0:01:49.9]} 20. Nc5 {[%clk 0:02:13.2]} 20... Be8
{[%clk 0:01:43.1]} 21. Nb7 {[%clk 0:02:12.3]} 21... Qd5 {[%clk 0:01:31.8]} 22.
Nxd8 {[%clk 0:02:12]} 22... Qxd8 {[%clk 0:01:27.2]} 23. Nxc6 {[%clk 0:02:12.2]}
23... Qh4 {[%clk 0:01:11]} 24. Ne5 {[%clk 0:02:02.1]} 24... Bxe5 {[%clk
0:01:06.1]} 25. dxe5 {[%clk 0:02:03]} 25... Ba4 {[%clk 0:01:06]} 26. Qc8+ {[%clk
0:01:52.9]} 26... Kg7 {[%clk 0:01:04.9]} 27. Rd2 {[%clk 0:01:53.8]} 27... Rg5
{[%clk 0:00:45.5]} 28. Qc3 {[%clk 0:01:44.1]} 28... Qe4 {[%clk 0:00:28.5]} 29.
f3 {[%clk 0:01:43.6]} 29... Qh4 {[%clk 0:00:24.5]} 30. Qd4 {[%clk 0:01:39.9]}
30... Qxd4+ {[%clk 0:00:07.8]} 31. Rxd4 {[%clk 0:01:38.7]} 31... Bc6 {[%clk
0:00:08.7]} 32. Kf2 {[%clk 0:01:31.5]} 32... Rxe5 {[%clk 0:00:08.2]} 33. Rc1
{[%clk 0:01:32.1]} 33... Bb5 {[%clk 0:00:04]} 34. Rc2 {[%clk 0:01:31]} 34... a5
{[%clk 0:00:02.6]} 35. a4 {[%clk 0:01:30.8]} 35... Be8 {[%clk 0:00:02.1]} 36.
Rc8 {[%clk 0:01:27]} 36... Kf8 {[%clk 0:00:01.9]} 37. Rdd8 {[%clk 0:01:26.7]}
1-0

[Event "*** SCC Grand Prix: Titled Tuesday Blitz"]
[Site "Chess.com"]
[Date "2020.08.11"]
[Round "3"]
[White "abykhovsky"]
[Black "amatatanav"]
[Result "1-0"]
[WhiteElo "2737"]
[BlackElo "2449"]
[TimeControl "180+1"]
[EndTime "10:28:38 PDT"]
[Termination "abykhovsky won on time"]

1. d4 {[%clk 0:03:00.9]} 1... Nf6 {[%clk 0:02:59.1]} 2. Nf3 {[%clk 0:03:01.3]}
2... e6 {[%clk 0:02:59.2]} 3. c4 {[%clk 0:03:01.1]} 3... d5 {[%clk 0:02:59.5]}
4. Nc3 {[%clk 0:03:01]} 4... Be7 {[%clk 0:02:59.3]} 5. Bg5 {[%clk 0:03:00.6]}
5... h6 {[%clk 0:02:59.3]} 6. Bh4 {[%clk 0:03:01.1]} 6... O-O {[%clk 0:02:59.3]}
7. e3 {[%clk 0:03:01.6]} 7... b6 {[%clk 0:02:54.7]} 8. Rc1 {[%clk 0:03:01.3]}
8... Bb7 {[%clk 0:02:37]} 9. Bxf6 {[%clk 0:03:00.3]} 9... Bxf6 {[%clk
0:02:35.2]} 10. cxd5 {[%clk 0:03:01.2]} 10... exd5 {[%clk 0:02:13.6]} 11. b4
{[%clk 0:03:02.1]} 11... c6 {[%clk 0:02:04.1]} 12. Be2 {[%clk 0:03:01.7]} 12...
Qd6 {[%clk 0:02:00.7]} 13. Qb3 {[%clk 0:03:01.1]} 13... Re8 {[%clk 0:01:30.7]}
14. O-O {[%clk 0:03:00.2]} 14... b5 {[%clk 0:01:16.7]} 15. a4 {[%clk 0:02:58.8]}
15... a6 {[%clk 0:01:04.5]} 16. Ne1 {[%clk 0:02:58]} 16... Be7 {[%clk
0:00:59.8]} 17. Nd3 {[%clk 0:02:57.6]} 17... Nd7 {[%clk 0:00:55.8]} 18. a5
{[%clk 0:02:54.8]} 18... Nf6 {[%clk 0:00:45.2]} 19. Nc5 {[%clk 0:02:52.5]} 19...
Bc8 {[%clk 0:00:44.4]} 20. Nd1 {[%clk 0:02:52.4]} 20... Ne4 {[%clk 0:00:33.9]}
21. Nb2 {[%clk 0:02:38.6]} 21... Nd2 {[%clk 0:00:32.1]} 22. Qc2 {[%clk
0:02:37.2]} 22... Nxf1 {[%clk 0:00:31.6]} 23. Bxf1 {[%clk 0:02:38.1]} 23... Qf6
{[%clk 0:00:24.3]} 24. Bd3 {[%clk 0:02:26.8]} 24... Bd6 {[%clk 0:00:24.1]} 25.
Qd2 {[%clk 0:02:21.8]} 25... Qh4 {[%clk 0:00:23.7]} 26. g3 {[%clk 0:02:21.6]}
26... Qf6 {[%clk 0:00:24]} 27. Bf1 {[%clk 0:02:20.9]} 27... Bg4 {[%clk
0:00:23.2]} 28. Nb7 {[%clk 0:02:14.3]} 28... Bf8 {[%clk 0:00:19.1]} 29. Nd3
{[%clk 0:02:13.6]} 29... Bc8 {[%clk 0:00:17.1]} 30. Nbc5 {[%clk 0:02:13]} 30...
h5 {[%clk 0:00:16.4]} 31. h4 {[%clk 0:02:11.7]} 31... g5 {[%clk 0:00:15.7]} 32.
hxg5 {[%clk 0:02:07.8]} 32... Qxg5 {[%clk 0:00:16.6]} 33. Ne5 {[%clk 0:02:04]}
33... Bd6 {[%clk 0:00:12.8]} 34. Ncd3 {[%clk 0:02:02.6]} 34... Bb7 {[%clk
0:00:11.5]} 35. Bh3 {[%clk 0:01:58.5]} 35... Kg7 {[%clk 0:00:10.1]} 36. Kh2
{[%clk 0:01:53.9]} 36... Rad8 {[%clk 0:00:06.6]} 37. f4 {[%clk 0:01:52.2]} 37...
Qf6 {[%clk 0:00:06.4]} 38. Bd7 {[%clk 0:01:47.7]} 38... Re7 {[%clk 0:00:06]} 39.
Bxc6 {[%clk 0:01:48]} 39... Bxe5 {[%clk 0:00:05.1]} 40. fxe5 {[%clk 0:01:46.5]}
40... Qg6 {[%clk 0:00:04.7]} 41. Nf4 {[%clk 0:01:43.9]} 41... Qg5 {[%clk
0:00:02]} 42. Bxb7 {[%clk 0:01:40.2]} 42... Rxb7 {[%clk 0:00:02.9]} 43. Qf2
{[%clk 0:01:39.5]} 43... Rbd7 {[%clk 0:00:02.7]} 44. Rc6 {[%clk 0:01:38.5]}
44... Re8 {[%clk 0:00:02.4]} 45. Rxa6 {[%clk 0:01:38]} 45... Rf8 {[%clk
0:00:01.5]} 46. Rf6 {[%clk 0:01:37.6]} 46... Re8 {[%clk 0:00:01.2]} 47. Qf3
{[%clk 0:01:32.2]} 1-0

[Event "*** SCC Grand Prix: Titled Tuesday Blitz"]
[Site "Chess.com"]
[Date "2020.08.11"]
[Round "3"]
[White "Sacbutt"]
[Black "Rubinstein_Akiba"]
[Result "0-1"]
[WhiteElo "2210"]
[BlackElo "2440"]
[TimeControl "180+1"]
[EndTime "10:28:40 PDT"]
[Termination "Rubinstein_Akiba won by resignation"]

1. d4 {[%clk 0:03:00.8]} 1... Nf6 {[%clk 0:02:59.6]} 2. c4 {[%clk 0:03:00.7]}
2... e6 {[%clk 0:02:59.5]} 3. Nf3 {[%clk 0:03:00.8]} 3... d5 {[%clk 0:02:58.7]}
4. Nc3 {[%clk 0:03:00.1]} 4... Bb4 {[%clk 0:02:57.8]} 5. cxd5 {[%clk 0:02:58.8]}
5... exd5 {[%clk 0:02:57]} 6. Bd2 {[%clk 0:02:55.9]} 6... O-O {[%clk 0:02:56.1]}
7. e3 {[%clk 0:02:55.6]} 7... Bf5 {[%clk 0:02:50.9]} 8. Be2 {[%clk 0:02:54.8]}
8... c5 {[%clk 0:02:49.5]} 9. O-O {[%clk 0:02:54.3]} 9... c4 {[%clk 0:02:49.7]}
10. Ne5 {[%clk 0:02:44.8]} 10... Nc6 {[%clk 0:02:48.5]} 11. a3 {[%clk
0:02:30.4]} 11... Bd6 {[%clk 0:02:46.6]} 12. f4 {[%clk 0:02:28.1]} 12... Na5
{[%clk 0:02:40.4]} 13. Qe1 {[%clk 0:02:22.7]} 13... Nb3 {[%clk 0:02:39.1]} 14.
Rd1 {[%clk 0:02:22.8]} 14... Bc2 {[%clk 0:02:37.6]} 15. g4 {[%clk 0:02:18.3]}
15... Bxd1 {[%clk 0:02:25.2]} 16. Bxd1 {[%clk 0:02:19.2]} 16... Nxd2 {[%clk
0:02:20]} 17. Qxd2 {[%clk 0:02:18.8]} 17... Bxe5 {[%clk 0:02:20.3]} 18. dxe5
{[%clk 0:02:16.5]} 18... Ne4 {[%clk 0:02:21.2]} 19. Qc2 {[%clk 0:01:50.1]} 19...
Nc5 {[%clk 0:02:12.1]} 20. Bf3 {[%clk 0:01:42.6]} 20... d4 {[%clk 0:02:08.7]}
21. Rd1 {[%clk 0:01:35]} 21... Nd3 {[%clk 0:02:01.1]} 22. Nd5 {[%clk 0:01:21.9]}
22... dxe3 {[%clk 0:01:43.8]} 23. Nxe3 {[%clk 0:01:01.5]} 23... Qb6 {[%clk
0:01:36.7]} 24. Rxd3 {[%clk 0:00:56.3]} 24... cxd3 {[%clk 0:01:33]} 25. Qxd3
{[%clk 0:00:57.2]} 25... Rad8 {[%clk 0:01:31.5]} 26. Qe2 {[%clk 0:00:48.1]}
26... Rd4 {[%clk 0:01:27.3]} 27. Kg2 {[%clk 0:00:28.6]} 27... Rfd8 {[%clk
0:01:13.4]} 28. Nc4 {[%clk 0:00:28.4]} 28... Qa6 {[%clk 0:01:00.4]} 29. Nd6
{[%clk 0:00:25.5]} 29... Qxe2+ {[%clk 0:00:58.2]} 30. Bxe2 {[%clk 0:00:26.2]}
30... Rxf4 {[%clk 0:00:58]} 31. Bc4 {[%clk 0:00:22.6]} 31... Rxd6 {[%clk
0:00:53.2]} 0-1

[Event "*** SCC Grand Prix: Titled Tuesday Blitz"]
[Site "Chess.com"]
[Date "2020.08.11"]
[Round "3"]
[White "UmbertoConcelli"]
[Black "profofchess"]
[Result "1-0"]
[WhiteElo "2707"]
[BlackElo "2430"]
[TimeControl "180+1"]
[EndTime "10:28:42 PDT"]
[Termination "UmbertoConcelli won by resignation"]

1. d4 {[%clk 0:03:00.9]} 1... Nf6 {[%clk 0:02:59.8]} 2. c4 {[%clk 0:02:58.2]}
2... e6 {[%clk 0:02:59.6]} 3. Nf3 {[%clk 0:02:58.1]} 3... c5 {[%clk 0:02:59.3]}
4. Nc3 {[%clk 0:02:55.7]} 4... cxd4 {[%clk 0:02:55.8]} 5. Nxd4 {[%clk
0:02:56.6]} 5... a6 {[%clk 0:02:51]} 6. a3 {[%clk 0:02:54.6]} 6... b6 {[%clk
0:02:49.7]} 7. e4 {[%clk 0:02:50.8]} 7... d6 {[%clk 0:02:49.5]} 8. Be2 {[%clk
0:02:49.4]} 8... Bb7 {[%clk 0:02:48.5]} 9. f3 {[%clk 0:02:45.4]} 9... Be7 {[%clk
0:02:48.3]} 10. O-O {[%clk 0:02:46.3]} 10... Nbd7 {[%clk 0:02:48.1]} 11. Be3
{[%clk 0:02:46.7]} 11... Qc7 {[%clk 0:02:46.2]} 12. Qd2 {[%clk 0:02:44.5]} 12...
O-O {[%clk 0:02:45.8]} 13. Rfc1 {[%clk 0:02:43.8]} 13... Rac8 {[%clk 0:02:41.4]}
14. b4 {[%clk 0:02:40.9]} 14... Qb8 {[%clk 0:02:37.2]} 15. Nb3 {[%clk
0:02:40.1]} 15... Bd8 {[%clk 0:02:28.7]} 16. Kh1 {[%clk 0:02:32.1]} 16... Bc7
{[%clk 0:02:24.5]} 17. Bg1 {[%clk 0:02:31.8]} 17... d5 {[%clk 0:01:53.4]} 18.
cxd5 {[%clk 0:02:25.8]} 18... Bf4 {[%clk 0:01:51.8]} 19. Be3 {[%clk 0:02:18.2]}
19... Bxh2 {[%clk 0:01:51.5]} 20. f4 {[%clk 0:01:58.1]} 20... Bg3 {[%clk
0:01:49.8]} 21. Bf3 {[%clk 0:01:55.2]} 21... exd5 {[%clk 0:01:32.5]} 22. e5
{[%clk 0:01:54.6]} 22... d4 {[%clk 0:00:33.4]} 23. Nxd4 {[%clk 0:01:46.6]} 23...
Bxf3 {[%clk 0:00:19.1]} 24. gxf3 {[%clk 0:01:47.5]} 24... Nxe5 {[%clk
0:00:17.4]} 25. fxe5 {[%clk 0:01:46.2]} 25... Qxe5 {[%clk 0:00:18.3]} 26. Kg2
{[%clk 0:01:41.3]} 26... Bh4 {[%clk 0:00:16]} 27. Bf4 {[%clk 0:01:37.9]} 27...
Qh5 {[%clk 0:00:16]} 28. Rh1 {[%clk 0:01:21]} 28... Qg6+ {[%clk 0:00:15.6]} 29.
Kf1 {[%clk 0:01:21.1]} 29... Bg3 {[%clk 0:00:14]} 30. Rg1 {[%clk 0:01:04.3]}
30... Bxf4 {[%clk 0:00:13.7]} 31. Qxf4 {[%clk 0:01:00.3]} 31... Qd3+ {[%clk
0:00:13.5]} 32. Nce2 {[%clk 0:01:00.1]} 32... Rfd8 {[%clk 0:00:11.4]} 33. Qxf6
{[%clk 0:00:59.1]} 33... g6 {[%clk 0:00:09.7]} 34. Kf2 {[%clk 0:00:55.8]} 34...
Rc2 {[%clk 0:00:08.7]} 35. Nxc2 {[%clk 0:00:54.6]} 1-0